fUSD/lending_fUSD_20260615
["ID","MTS","AMOUNT","RATE_DAILY","PERIOD"]
[425100188,1781495445000,-500.0,0.00024949,2]
[425100191,1781495445000,-3710.0349029,0.0002495,2]
[425100187,1781495445000,-500.0,0.00024949,2]
[425100196,1781495445000,-15726.0014255,0.0002495,2]
[425100194,1781495445000,-300.0,0.0002495,7]
[425100183,1781495445000,-500.0,0.00024949,2]
[425100195,1781495445000,-4000.0,0.0002495,3]
[425100185,1781495445000,-500.0,0.00024949,2]
[425100180,1781495445000,-2000.0,0.000249,2]
[425100182,1781495445000,-610.49,0.00024946,7]
[425100181,1781495445000,-1449.16737446,0.000249,2]
[425100184,1781495445000,-500.0,0.00024949,2]
[425100189,1781495445000,-574792.2297456,0.0002495,2]
[425100197,1781495445000,-7601.5519834,0.0002495,2]
[425100190,1781495445000,-4273.3893309,0.0002495,2]
[425100207,1781495445000,-500.0,0.00024999,2]
[425100198,1781495445000,-7800.92,0.00024969,7]
[425100214,1781495445000,-301256.19997256,0.00025,2]
[425100213,1781495445000,-251.52702595,0.00024999,2]
[425100211,1781495445000,-500.0,0.00024999,2]
[425100192,1781495445000,-2941.4905495,0.0002495,2]
[425100210,1781495445000,-500.0,0.00024999,2]
[425100208,1781495445000,-500.0,0.00024999,2]
[425100203,1781495445000,-500.0,0.00024999,2]
[425100212,1781495445000,-500.0,0.00024999,2]
[425100206,1781495445000,-500.0,0.00024999,2]
[425100209,1781495445000,-500.0,0.00024999,2]
[425100202,1781495445000,-500.0,0.00024999,2]
[425100204,1781495445000,-500.0,0.00024999,2]
[425100201,1781495445000,-500.0,0.00024999,2]
[425100200,1781495445000,-500.0,0.00024999,2]
[425100199,1781495445000,-500.0,0.00024975,2]
[425100205,1781495445000,-500.0,0.00024999,2]
[425100232,1781495446000,-191.0,0.00025,2]
[425100233,1781495446000,-676.0,0.00025,2]
[425100236,1781495446000,-200.0,0.00025,10]
[425100238,1781495446000,-893.0,0.00025,2]
[425100230,1781495446000,-1843.0,0.00025,2]
[425100229,1781495446000,-1057.7,0.00025,7]
[425100228,1781495446000,-162.23833487,0.00025,2]
[425100231,1781495446000,-218.0,0.00025,2]
[425100241,1781495446000,-266.0,0.00025,2]
[425100227,1781495446000,-910216.73005249,0.00025,2]
[425100235,1781495446000,-266.0,0.00025,2]
[425100234,1781495446000,-247.0,0.00025,2]
[425100245,1781495446000,-239.26,0.00025,2]
[425100243,1781495446000,-216.24074205,0.00025,2]
[425100244,1781495446000,-239.26,0.00025,2]
[425100246,1781495446000,-589.0,0.00025,2]
[425100239,1781495446000,-437.0,0.00025,2]
[425100240,1781495446000,-247.0,0.00025,2]
[425100237,1781495446000,-1012.35,0.00025,7]
[425100242,1781495446000,-200.0,0.00025,2]
[425100265,1781495447000,-399.68222012,0.00025589,2]
[425100267,1781495447000,-233.5188934,0.00025589,2]
[425100266,1781495447000,-154.67963636,0.00025589,2]
[425100272,1781495447000,-151.0,0.00025615,7]
[425100270,1781495447000,-167.83801069,0.000256,4]
[425100268,1781495447000,-151.0,0.00025589,2]
[425100269,1781495447000,-280.03725111,0.00025589,2]
[425100273,1781495447000,-151.0,0.00025615,7]
[425100279,1781495447000,-10000.0,0.00025618,2]
[425100280,1781495447000,-329493.81113087,0.00025618,2]
[425100281,1781495447000,-2106.7131192,0.00025618,2]
[425100276,1781495447000,-500.0,0.00025617,2]
[425100278,1781495447000,-2000.0,0.00025618,2]
[425100283,1781495447000,-1057.7,0.000257,7]
[425100282,1781495447000,-9613.62899045,0.00025618,2]
[425100285,1781495447000,-150.0,0.00025754,2]
[425100271,1781495447000,-2690.0,0.000256,2]
[425100274,1781495447000,-500.0,0.00025617,2]
[425100259,1781495447000,-722.350127,0.00025199,2]
[425100264,1781495447000,-610.49,0.00025523,2]
[425100249,1781495447000,-225.18697532,0.00025041,2]
[425100248,1781495447000,-154.67963625,0.00025041,2]
[425100253,1781495447000,-206.0,0.00025073,2]
[425100250,1781495447000,-151.0,0.00025041,2]
[425100251,1781495447000,-270.0455652,0.00025041,2]
[425100252,1781495447000,-291.002911,0.0002505,2]
[425100247,1781495447000,-399.68222012,0.00025041,2]
[425100254,1781495447000,-300.0,0.000251,10]
[425100255,1781495447000,-1192.21001096,0.00025134,2]
[425100256,1781495447000,-364.16954065,0.00025185,2]
[425100258,1781495447000,-152.0,0.00025198,4]
[425100260,1781495447000,-610.49,0.00025234,30]
[425100262,1781495447000,-2781.82699784,0.00025281,2]
[425100257,1781495447000,-464.30867591,0.00025185,2]
[425100263,1781495447000,-36651.0,0.00025508,2]
[425100284,1781495447000,-981.98,0.0002575,7]
[425100261,1781495447000,-2500.0,0.00025261,2]
[425100275,1781495447000,-500.0,0.00025617,2]
[425100286,1781495447000,-500.0,0.00025754,2]
[425100277,1781495447000,-500.0,0.00025617,2]
[425100291,1781495447000,-500.0,0.00025754,2]
[425100320,1781495447000,-399.68222012,0.00026137,2]
[425100311,1781495447000,-309.35541999,0.00025829,2]
[425100319,1781495447000,-289.52818638,0.00026118,7]
[425100310,1781495447000,-1810.99686447,0.00025829,2]
[425100312,1781495447000,-350.0,0.00025893,2]
[425100313,1781495447000,-181.21792604,0.00025929,2]
[425100314,1781495447000,-573.4,0.00025933,2]
[425100316,1781495447000,-1505.03,0.00026027,2]
[425100317,1781495447000,-610.49,0.00026099,30]
[425100318,1781495447000,-164.15080751,0.00026118,7]
[425100315,1781495447000,-550.0,0.00026,2]
[425100298,1781495447000,-500.0,0.00025754,2]
[425100321,1781495447000,-242.15909246,0.00026137,2]
[425100324,1781495447000,-4682.95165501,0.00026157,2]
[425100323,1781495447000,-203.56087742,0.00026137,2]
[425100325,1781495447000,-1841.94319562,0.00026157,2]
[425100326,1781495447000,-326.17088985,0.00026157,2]
[425100304,1781495447000,-262.29225757,0.00025767,2]
[425100306,1781495447000,-448.21,0.00025786,2]
[425100322,1781495447000,-151.0,0.00026137,2]
[425100299,1781495447000,-500.0,0.00025754,2]
[425100295,1781495447000,-500.0,0.00025754,2]
[425100288,1781495447000,-500.0,0.00025754,2]
[425100287,1781495447000,-500.0,0.00025754,2]
[425100297,1781495447000,-500.0,0.00025754,2]
[425100292,1781495447000,-500.0,0.00025754,2]
[425100290,1781495447000,-500.0,0.00025754,2]
[425100289,1781495447000,-500.0,0.00025754,2]
[425100294,1781495447000,-500.0,0.00025754,2]
[425100296,1781495447000,-500.0,0.00025754,2]
[425100300,1781495447000,-500.0,0.00025754,2]
[425100307,1781495447000,-150.68106,0.00025802,7]
[425100303,1781495447000,-644.44069364,0.00025754,2]
[425100302,1781495447000,-500.0,0.00025754,2]
[425100301,1781495447000,-500.0,0.00025754,2]
[425100308,1781495447000,-610.49,0.00025811,7]
[425100309,1781495447000,-764.4023123,0.00025829,2]
[425100293,1781495447000,-500.0,0.00025754,2]
[425100305,1781495447000,-2307.9,0.00025786,2]
[425100330,1781495448000,-3127.82683001,0.00026157,2]
[425100327,1781495448000,-1518.92550936,0.00026157,2]
[425100329,1781495448000,-1982.2377064,0.00026157,2]
[425100328,1781495448000,-484.74120905,0.00026157,2]
[425100331,1781495448000,-285.0,0.00026194,7]
[425100333,1781495448000,-808.7,0.00026296,2]
[425100334,1781495448000,-151.0,0.00026296,2]
[425100337,1781495448000,-128.74339577,0.00026337,7]
[425100335,1781495448000,-250.0,0.00026301,7]
[425100336,1781495448000,-1440.98771749,0.00026303,2]
[425100332,1781495448000,-523.0,0.00026278,2]
[425100339,1781495449000,-270.838774,0.00026354,7]
[425100338,1781495449000,-150.31297699,0.00026337,7]
[425100340,1781495449000,-308.84824901,0.00026377,2]
[425100349,1781495449000,-201.1908757,0.00026611,7]
[425100348,1781495449000,-11073.503996,0.000266,2]
[425100342,1781495449000,-150.0,0.00026387,2]
[425100343,1781495449000,-610.49,0.00026388,2]
[425100345,1781495449000,-964.03,0.000265,14]
[425100347,1781495449000,-517.772472,0.00026598,7]
[425100346,1781495449000,-350.0,0.00026505,5]
[425100344,1781495449000,-1057.7,0.000264,7]
[425100341,1781495449000,-2682.64226783,0.00026377,2]
[425100357,1781496018000,1351.57,0.00029452,120]
[425100362,1781496063000,-275.0,0.00010968,2]
[425100360,1781496063000,-180.18,0.00010858,2]
[425100361,1781496063000,-500.0,0.00010858,2]
[425100363,1781496063000,-638.40892735,0.00011899,2]
[425100368,1781496063000,-500.0,0.00011998,2]
[425100365,1781496063000,-500.0,0.00011998,2]
[425100369,1781496063000,-5962.38717973,0.00012,2]
[425100364,1781496063000,-300.0,0.00011943,2]
[425100367,1781496063000,-500.0,0.00011998,2]
[425100366,1781496063000,-644.02389292,0.00011998,2]
[425100376,1781496070000,-1974.92,0.00012087,2]
[425100375,1781496070000,-1169.0237,0.00012005,2]
[425100373,1781496070000,-250.0,0.00012003,2]
[425100374,1781496070000,-259.84831589,0.00012005,7]
[425100372,1781496070000,-150.0,0.00012001,2]
[425100370,1781496070000,-499.99999999,0.00011998,2]
[425100371,1781496070000,-2982.74691845,0.00012,2]
[425100378,1781496071000,-150.0,0.00012118,2]
[425100377,1781496071000,-151.0,0.00012095,2]
[425100380,1781496071000,-163.0091279,0.00012118,2]
[425100379,1781496071000,-185.46297056,0.00012118,2]
[425100381,1781496071000,-500.0,0.00012118,2]
[425100382,1781496071000,-500.0,0.00012118,2]
[425100384,1781496071000,-500.0,0.00012118,2]
[425100383,1781496071000,-267.70688215,0.00012118,2]
[425100385,1781496071000,-296.28208506,0.00012118,2]
[425100386,1781496087000,-203.71791494,0.00012118,2]
[425100387,1781496087000,-304.00011362,0.00012118,2]
[425100388,1781496087000,-9492.28197144,0.00012119,2]
[425100389,1781496100000,-10000.0,0.00012119,2]
[425100390,1781496101000,-5220.66802856,0.00012119,2]
[425100392,1781496101000,-3837.82,0.00012119,2]
[425100391,1781496101000,-299.99,0.00012119,2]
[425100398,1781496566000,-5039.66704547,0.00012,2]
[425100397,1781496566000,-250.0,0.00012,2]
[425100394,1781496566000,-2135.34101672,0.00011988,2]
[425100396,1781496566000,-150.0,0.00011999,2]
[425100395,1781496566000,-293.78043255,0.00011999,2]
[425100400,1781496570000,-166.66,0.00013026,2]
[425100399,1781496570000,-166.66,0.00012758,2]
[425100401,1781496570000,-250.0,0.00013199,2]
[425100404,1781496570000,-58.60770222,0.00013295,2]
[425100403,1781496570000,-186.77,0.00013275,2]
[425100402,1781496570000,-250.0,0.00013199,2]
[425100416,1781496631000,-193.49,0.00013385,2]
[425100410,1781496631000,-151.0,0.00013318,2]
[425100411,1781496631000,-66.30872083,0.00013333,2]
[425100409,1781496631000,-108.05229778,0.00013295,2]
[425100412,1781496631000,-253.69127917,0.00013333,2]
[425100414,1781496631000,-223.74,0.00013349,2]
[425100413,1781496631000,-212.57164574,0.00013335,2]
[425100418,1781496631000,-150.0,0.00013488,2]
[425100421,1781496631000,-554.02677509,0.00013489,2]
[425100415,1781496631000,-153.0,0.00013375,2]
[425100417,1781496631000,-420.13,0.0001343,2]
[425100420,1781496631000,-150.0,0.00013488,2]
[425100423,1781496631000,-1540.10915501,0.00013489,2]
[425100422,1781496631000,-994.3940699,0.00013489,2]
[425100424,1781496631000,-701.25,0.0001355,2]
[425100425,1781496631000,-194.35555882,0.0001355,2]
[425100426,1781496631000,-500.0,0.0001355,2]
[425100419,1781496631000,-150.0,0.00013488,2]
[425100443,1781496632000,-500.0,0.00013698,2]
[425100444,1781496632000,-513.36098402,0.00013698,2]
[425100445,1781496632000,-500.0,0.00013698,2]
[425100446,1781496632000,-500.0,0.00013698,2]
[425100449,1781496632000,-500.0,0.00013698,2]
[425100452,1781496632000,-167.52,0.00013699,2]
[425100447,1781496632000,-500.0,0.00013698,2]
[425100448,1781496632000,-500.0,0.00013698,2]
[425100442,1781496632000,-500.0,0.00013698,2]
[425100453,1781496632000,-5114.59,0.00013699,2]
[425100454,1781496632000,-1363.54,0.00013799,2]
[425100457,1781496632000,-250.0,0.00014,2]
[425100450,1781496632000,-515.46565807,0.00013698,2]
[425100441,1781496632000,-150.0,0.00013697,2]
[425100434,1781496632000,-500.0,0.00013693,2]
[425100440,1781496632000,-833.7366685,0.00013697,2]
[425100436,1781496632000,-500.0,0.00013693,2]
[425100439,1781496632000,-27182.91,0.00013694,2]
[425100433,1781496632000,-195.48,0.00013691,2]
[425100430,1781496632000,-200.0,0.00013584,2]
[425100438,1781496632000,-643.67942369,0.00013693,2]
[425100432,1781496632000,-164.31,0.00013651,2]
[425100429,1781496632000,-151.0,0.00013583,2]
[425100431,1781496632000,-3478.781,0.00013594,2]
[425100435,1781496632000,-644.33745991,0.00013693,2]
[425100428,1781496632000,-166.66,0.00013563,2]
[425100427,1781496632000,-663.20444118,0.0001355,2]
[425100456,1781496632000,-1500.0,0.00014,2]
[425100451,1781496632000,-500.0,0.00013698,2]
[425100455,1781496632000,-166.66,0.00013832,2]
[425100459,1781496632000,-477.99150398,0.0001421,7]
[425100482,1781496632000,-4763.66169759,0.000149,2]
[425100487,1781496632000,-1254.41808677,0.00014989,2]
[425100486,1781496632000,-21451.69232826,0.00014989,2]
[425100484,1781496632000,-291.7823094,0.00014908,2]
[425100488,1781496632000,-612.36360206,0.00014989,2]
[425100483,1781496632000,-2384.42002192,0.000149,2]
[425100485,1781496632000,-500.0,0.00014988,2]
[425100479,1781496632000,-786.87677271,0.000149,2]
[425100458,1781496632000,-166.66,0.00014101,2]
[425100481,1781496632000,-648.44447287,0.000149,2]
[425100480,1781496632000,-999.4623,0.000149,2]
[425100478,1781496632000,-10870.01538874,0.000149,2]
[425100477,1781496632000,-6835.19797377,0.000149,2]
[425100474,1781496632000,-2500.0,0.00014889,2]
[425100475,1781496632000,-648.44447287,0.0001489,2]
[425100471,1781496632000,-648.44447287,0.00014859,2]
[425100472,1781496632000,-648.44447287,0.00014869,2]
[425100473,1781496632000,-648.44447287,0.0001488,2]
[425100470,1781496632000,-648.44447287,0.00014849,2]
[425100476,1781496632000,-167.83801069,0.000149,2]
[425100467,1781496632000,-2000.0,0.0001482,2]
[425100469,1781496632000,-648.44447287,0.00014839,2]
[425100468,1781496632000,-648.44447287,0.00014828,2]
[425100465,1781496632000,-648.44447287,0.00014808,2]
[425100466,1781496632000,-648.44447287,0.00014818,2]
[425100463,1781496632000,-3123.9768,0.00014789,2]
[425100461,1781496632000,-250.0,0.00014624,2]
[425100462,1781496632000,-6824.0566,0.00014789,2]
[425100460,1781496632000,-704.28612464,0.00014624,2]
[425100464,1781496632000,-350.0,0.000148,2]
[425100491,1781496637000,-309.0,0.00013317,2]
[425100490,1781496637000,-152.0,0.00013302,2]
[425100494,1781496637000,-3004.03431994,0.000149,2]
[425100493,1781496637000,-1755.6758396,0.000149,2]
[425100495,1781496637000,-27430.25296586,0.00014989,2]
[425100492,1781496637000,-210.01209059,0.000149,2]
[425100523,1781496638000,-500.0,0.00014999,2]
[425100519,1781496638000,-500.0,0.00014999,2]
[425100520,1781496638000,-500.0,0.00014999,2]
[425100526,1781496638000,-500.0,0.00014999,2]
[425100525,1781496638000,-247.45830426,0.00014999,2]
[425100527,1781496638000,-500.0,0.00014999,2]
[425100534,1781496638000,-500.0,0.00014999,2]
[425100528,1781496638000,-500.0,0.00014999,2]
[425100530,1781496638000,-500.0,0.00014999,2]
[425100532,1781496638000,-3000.0,0.00014999,2]
[425100543,1781496638000,-500.0,0.00014999,2]
[425100529,1781496638000,-500.0,0.00014999,2]
[425100533,1781496638000,-500.0,0.00014999,2]
[425100536,1781496638000,-500.0,0.00014999,2]
[425100535,1781496638000,-500.0,0.00014999,2]
[425100544,1781496638000,-500.0,0.00014999,2]
[425100546,1781496638000,-500.0,0.00014999,2]
[425100542,1781496638000,-500.0,0.00014999,2]
[425100537,1781496638000,-500.0,0.00014999,2]
[425100538,1781496638000,-500.0,0.00014999,2]
[425100518,1781496638000,-500.0,0.00014999,2]
[425100531,1781496638000,-251.52702595,0.00014999,2]
[425100521,1781496638000,-500.0,0.00014999,2]
[425100500,1781496638000,-57266.05457548,0.00014989,2]
[425100515,1781496638000,-500.0,0.00014999,2]
[425100497,1781496638000,-4862.80998605,0.00014989,2]
[425100496,1781496638000,-357.58413338,0.00014989,2]
[425100498,1781496638000,-634.60582122,0.00014989,2]
[425100499,1781496638000,-604.00459208,0.00014989,2]
[425100511,1781496638000,-250.0080347,0.00014999,2]
[425100501,1781496638000,-151.0,0.00014997,2]
[425100512,1781496638000,-500.0,0.00014999,2]
[425100503,1781496638000,-500.0,0.00014998,2]
[425100502,1781496638000,-500.0,0.00014998,2]
[425100504,1781496638000,-500.0,0.00014999,2]
[425100505,1781496638000,-500.0,0.00014999,2]
[425100509,1781496638000,-500.0,0.00014999,2]
[425100507,1781496638000,-500.0,0.00014999,2]
[425100506,1781496638000,-500.0,0.00014999,2]
[425100508,1781496638000,-500.0,0.00014999,2]
[425100510,1781496638000,-500.0,0.00014999,2]
[425100513,1781496638000,-500.0,0.00014999,2]
[425100522,1781496638000,-500.0,0.00014999,2]
[425100524,1781496638000,-500.0,0.00014999,2]
[425100514,1781496638000,-500.0,0.00014999,2]
[425100516,1781496638000,-500.0,0.00014999,2]
[425100517,1781496638000,-500.0,0.00014999,2]
[425100541,1781496638000,-500.0,0.00014999,2]
[425100539,1781496638000,-500.0,0.00014999,2]
[425100540,1781496638000,-500.0,0.00014999,2]
[425100594,1781496638000,-500.0,0.00014999,2]
[425100598,1781496638000,-500.0,0.00014999,2]
[425100596,1781496638000,-500.0,0.00014999,2]
[425100600,1781496638000,-500.0,0.00014999,2]
[425100602,1781496638000,-500.0,0.00014999,2]
[425100619,1781496638000,-500.0,0.00014999,2]
[425100609,1781496638000,-500.0,0.00014999,2]
[425100611,1781496638000,-500.0,0.00014999,2]
[425100615,1781496638000,-500.0,0.00014999,2]
[425100607,1781496638000,-500.0,0.00014999,2]
[425100592,1781496638000,-500.0,0.00014999,2]
[425100605,1781496638000,-500.0,0.00014999,2]
[425100612,1781496638000,-500.0,0.00014999,2]
[425100623,1781496638000,-500.0,0.00014999,2]
[425100625,1781496638000,-500.0,0.00014999,2]
[425100627,1781496638000,-500.0,0.00014999,2]
[425100631,1781496638000,-300.0,0.00014999,2]
[425100545,1781496638000,-500.0,0.00014999,2]
[425100629,1781496638000,-300.0,0.00014999,2]
[425100635,1781496638000,-9418118.91271543,0.00015,2]
[425100633,1781496638000,-300.0,0.00014999,2]
[425100637,1781496638000,-665.45033526,0.00015,2]
[425100617,1781496638000,-500.0,0.00014999,2]
[425100586,1781496638000,-500.0,0.00014999,2]
[425100621,1781496638000,-500.0,0.00014999,2]
[425100578,1781496638000,-500.0,0.00014999,2]
[425100584,1781496638000,-500.0,0.00014999,2]
[425100548,1781496638000,-500.0,0.00014999,2]
[425100547,1781496638000,-500.0,0.00014999,2]
[425100550,1781496638000,-500.0,0.00014999,2]
[425100558,1781496638000,-500.0,0.00014999,2]
[425100636,1781496638000,-500.0,0.00014999,2]
[425100560,1781496638000,-500.0,0.00014999,2]
[425100562,1781496638000,-500.0,0.00014999,2]
[425100564,1781496638000,-500.0,0.00014999,2]
[425100566,1781496638000,-500.0,0.00014999,2]
[425100554,1781496638000,-500.0,0.00014999,2]
[425100549,1781496638000,-500.0,0.00014999,2]
[425100556,1781496638000,-500.0,0.00014999,2]
[425100568,1781496638000,-500.0,0.00014999,2]
[425100572,1781496638000,-500.0,0.00014999,2]
[425100580,1781496638000,-500.0,0.00014999,2]
[425100570,1781496638000,-500.0,0.00014999,2]
[425100574,1781496638000,-500.0,0.00014999,2]
[425100588,1781496638000,-500.0,0.00014999,2]
[425100576,1781496638000,-500.0,0.00014999,2]
[425100590,1781496638000,-500.0,0.00014999,2]
[425100582,1781496638000,-500.0,0.00014999,2]
[425100552,1781496638000,-500.0,0.00014999,2]
[425100641,1781496640000,-500.0,0.00014999,2]
[425100640,1781496640000,-316.0,0.00014989,2]
[425100642,1781496640000,-143.37255751,0.00014999,2]
[425100646,1781496640000,-415.04958309,0.00015,2]
[425100643,1781496640000,-356.62744249,0.00014999,2]
[425100645,1781496640000,-501.57549592,0.00015,2]
[425100644,1781496640000,-500.0,0.00014999,2]
[425100648,1781496641000,-292.87,0.00014999,2]
[425100649,1781496641000,-39.24267291,0.00014999,2]
[425100650,1781496641000,-1542903.55673567,0.00015,2]
[425100651,1781496641000,-500.0,0.00014999,2]
[425100652,1781496641000,-223.38630356,0.00015,2]
[425100653,1781496641000,-344.75833379,0.00015,2]
[425100647,1781496641000,-167.88732709,0.00014999,2]
[425100671,1781496642000,-500.0,0.00014999,2]
[425100670,1781496642000,-500.0,0.00014999,2]
[425100669,1781496642000,-500.0,0.00014999,2]
[425100667,1781496642000,-500.0,0.00014999,2]
[425100668,1781496642000,-500.0,0.00014999,2]
[425100666,1781496642000,-241.87704084,0.00014999,2]
[425100665,1781496642000,-258.12295916,0.00014999,2]
[425100663,1781496642000,-278.22176752,0.00014999,2]
[425100664,1781496642000,-221.77823248,0.00014999,2]
[425100662,1781496642000,-500.0,0.00014999,2]
[425100672,1781496643000,-10836.39337348,0.00015,2]
[425100684,1781496645000,-500.0,0.00014999,2]
[425100683,1781496645000,-320.0,0.00014989,2]
[425100685,1781496645000,-150.66460315,0.00014999,2]
[425100688,1781496646000,-500.0,0.00014999,2]
[425100690,1781496646000,-140.95492579,0.00014999,2]
[425100686,1781496646000,-349.33539685,0.00014999,2]
[425100689,1781496646000,-500.0,0.00014999,2]
[425100687,1781496646000,-500.0,0.00014999,2]
[425100695,1781496647000,-500.0,0.00014999,2]
[425100696,1781496647000,-110.30446951,0.00014999,2]
[425100693,1781496647000,-500.0,0.00014999,2]
[425100694,1781496647000,-500.0,0.00014999,2]
[425100692,1781496647000,-359.04507421,0.00014999,2]
[425100697,1781496669000,150.0,0.00012,7]
[425100700,1781497157000,-80.63881651,0.00011899,2]
[425100699,1781497157000,-277.739474,0.00011899,2]
[425100702,1781497157000,-30.63881651,0.00011899,2]
[425100701,1781497157000,-169.36118349,0.00011899,2]
[425100703,1781497157000,-281.15634428,0.00011899,2]
[425100704,1781497354000,188.19629636,0.00030136,120]
[425100705,1781497370000,156.31,0.00030137,120]
[425100708,1781497640000,-250.0,0.00011893,2]
[425100709,1781497640000,-135.25473921,0.00011899,2]
[425100707,1781497640000,-166.66,0.00011886,2]
[425100711,1781497640000,-537.1,0.0001236,2]
[425100713,1781497640000,-643.08307634,0.00012501,2]
[425100712,1781497640000,-166.66,0.00012387,2]
[425100710,1781497640000,-166.66,0.00012137,2]
[425100714,1781497765000,-330.303,0.00011786,2]
[425100731,1781497832000,-80.99779505,0.00012565,2]
[425100740,1781497832000,-166.37342242,0.00012659,2]
[425100741,1781497832000,-553.88983556,0.00012659,2]
[425100736,1781497832000,-200.0,0.00012645,2]
[425100737,1781497832000,-216.09656886,0.00012658,2]
[425100732,1781497832000,-88.47220495,0.00012565,2]
[425100738,1781497832000,-56.04031284,0.00012658,2]
[425100730,1781497832000,-890.66886957,0.00012557,2]
[425100733,1781497832000,-160.0,0.00012565,2]
[425100735,1781497832000,-166.66,0.00012637,2]
[425100739,1781497832000,-243.95968716,0.00012658,2]
[425100728,1781497832000,-116.49845074,0.0001242,2]
[425100751,1781497832000,-151.0,0.00012665,2]
[425100726,1781497832000,-251.93596117,0.00012358,2]
[425100727,1781497832000,-376.35626783,0.00012358,2]
[425100734,1781497832000,-500.0,0.0001257,3]
[425100742,1781497832000,-500.0,0.00012659,2]
[425100729,1781497832000,-3949.44154926,0.0001242,2]
[425100746,1781497832000,-500.0,0.00012659,2]
[425100750,1781497832000,-151.0,0.00012665,2]
[425100761,1781497832000,-150.0,0.00013398,2]
[425100762,1781497832000,-277.98509842,0.00013399,2]
[425100760,1781497832000,-753.80710427,0.000133,2]
[425100758,1781497832000,-166.66,0.00013138,2]
[425100756,1781497832000,-250.0,0.00013075,2]
[425100757,1781497832000,-250.0,0.00013075,2]
[425100753,1781497832000,-164.09,0.00012683,2]
[425100759,1781497832000,-406.24989573,0.000133,2]
[425100752,1781497832000,-152.0,0.00012665,2]
[425100755,1781497832000,-164.92,0.0001304,2]
[425100747,1781497832000,-350.0,0.00012659,2]
[425100749,1781497832000,-152.0,0.00012665,2]
[425100743,1781497832000,-616.38715913,0.00012659,2]
[425100745,1781497832000,-500.0,0.00012659,2]
[425100744,1781497832000,-500.0,0.00012659,2]
[425100748,1781497832000,-1226.81,0.0001266,2]
[425100754,1781497832000,-166.66,0.00012887,2]
[425100767,1781497833000,-177.41462026,0.00013399,2]
[425100768,1781497833000,-451.03622193,0.00013399,2]
[425100766,1781497833000,-150.57559659,0.00013399,2]
[425100765,1781497833000,-500.0,0.00013399,2]
[425100764,1781497833000,-500.0,0.00013399,2]
[425100771,1781497833000,-45563.75105389,0.000134,2]
[425100769,1781497833000,-2978.251,0.000134,2]
[425100770,1781497833000,-1582.07503696,0.000134,2]
[425100772,1781497833000,-776.2569581,0.000134,2]
[425100773,1781497833000,-305.91605105,0.000134,2]
[425100774,1781497833000,-410.65090891,0.000134,2]
[425100763,1781497833000,-722.01490158,0.00013399,2]
[425100835,1781497838000,-151.0,0.00013579,2]
[425100836,1781497838000,-151.0,0.00013581,2]
[425100842,1781497838000,-500.0,0.00013593,2]
[425100846,1781497838000,-500.0,0.00013593,2]
[425100844,1781497838000,-500.0,0.00013593,2]
[425100845,1781497838000,-500.0,0.00013593,2]
[425100843,1781497838000,-500.0,0.00013593,2]
[425100848,1781497838000,-151.0,0.00013652,2]
[425100850,1781497838000,-4287.29552783,0.00013668,2]
[425100849,1781497838000,-300.0,0.00013662,2]
[425100851,1781497838000,-500.0,0.00013672,2]
[425100852,1781497838000,-157.2008546,0.00013676,2]